[Event "Titled Tuesday Blitz December 27 Early 2022"]
[White "Bok, Benjamin"]
[Black "Christiansen, Johan-Sebastian"]
[WhiteFideId "1017063"]
[BlackFideId "1512668"]
[WhiteElo "2607"]
[BlackElo "2579"]
[Result "1-0"]
[Round "06"]
[TimeControl "180+2"]
[Date "2022.12.27"]
[WhiteClock "0:00:21"]
[BlackClock "0:00:03"]

1. d4 {[%clk 0:03:00]}  Nf6 {[%clk 0:02:57]} 2. c4 {[%clk 0:03:00]}  c5 {[%clk 0:02:57]} 3. Nf3 {[%clk 0:03:00]}  cxd4 {[%clk 0:02:56]} 4. Nxd4 {[%clk 0:03:01]}  e5 {[%clk 0:02:57]} 5. Nb5 {[%clk 0:03:01]}  d5 {[%clk 0:02:57]} 6. cxd5 {[%clk 0:03:02]}  Bc5 {[%clk 0:02:57]} 7. e3 {[%clk 0:03:03]}  O-O {[%clk 0:02:50]} 8. N5c3 {[%clk 0:03:02]}  Nbd7 {[%clk 0:02:46]} 9. Be2 {[%clk 0:02:49]}  Nb6 {[%clk 0:02:45]} 10. e4 {[%clk 0:02:43]}  Bd7 {[%clk 0:01:54]} 11. O-O {[%clk 0:02:42]}  Rc8 {[%clk 0:01:54]} 12. Bg5 {[%clk 0:02:39]}  h6 {[%clk 0:01:54]} 13. Bh4 {[%clk 0:02:38]}  g5 {[%clk 0:01:54]} 14. Bg3 {[%clk 0:02:38]}  Re8 {[%clk 0:01:54]} 15. Nd2 {[%clk 0:02:36]}  Bb4 {[%clk 0:01:54]} 16. Rc1 {[%clk 0:02:34]}  Qe7 {[%clk 0:01:44]} 17. Qb3 {[%clk 0:02:16]}  Bc5 {[%clk 0:01:41]} 18. a4 {[%clk 0:01:50]}  a5 {[%clk 0:01:32]} 19. Nf3 {[%clk 0:01:22]}  Nh5 {[%clk 0:01:20]} 20. Bb5 {[%clk 0:00:53]}  g4 {[%clk 0:01:16]} 21. Nh4 {[%clk 0:00:52]}  Nf4 {[%clk 0:01:12]} 22. Bxd7 {[%clk 0:00:48]}  Nxd7 {[%clk 0:01:12]} 23. Nf5 {[%clk 0:00:48]}  Qg5 {[%clk 0:01:10]} 24. d6 {[%clk 0:00:45]}  Ng6 {[%clk 0:01:05]} 25. Qxb7 {[%clk 0:00:39]}  Red8 {[%clk 0:01:01]} 26. Kh1 {[%clk 0:00:33]}  Kf8 {[%clk 0:00:59]} 27. Nd5 {[%clk 0:00:32]}  Rb8 {[%clk 0:00:55]} 28. Qc7 {[%clk 0:00:29]}  h5 {[%clk 0:00:39]} 29. Nde7 {[%clk 0:00:26]}  Bb6 {[%clk 0:00:06]} 30. Qc3 {[%clk 0:00:26]}  Nf4 {[%clk 0:00:04]} 31. Bh4 {[%clk 0:00:20]}  Ne2 {[%clk 0:00:01]} 32. Bxg5 {[%clk 0:00:19]}  Nxc3 {[%clk 0:00:02]} 33. Rxc3 {[%clk 0:00:20]}  Bd4 {[%clk 0:00:02]} 34. Bh6+ {[%clk 0:00:19]}  Ke8 {[%clk 0:00:02]} 35. Ng7+ {[%clk 0:00:19]}  Kf8 {[%clk 0:00:02]} 36. Ne6+ {[%clk 0:00:20]}  Ke8 {[%clk 0:00:03]} 37. Nc7# {[%clk 0:00:21]} 1-0


[Site "https://www.chess.com"]

[Event "Titled Tuesday Blitz December 27 Early 2022"]
[White "Borrmann, Laurenz"]
[Black "Hasangatin, Ramil"]
[WhiteFideId "312187930"]
[BlackFideId "4122160"]
[WhiteElo "2304"]
[BlackElo "2457"]
[Result "0-1"]
[Round "06"]
[TimeControl "180+2"]
[Date "2022.12.27"]
[WhiteClock "0:00:22"]
[BlackClock "0:01:31"]

1. d4 {[%clk 0:03:00]}  d6 {[%clk 0:02:59]} 2. Nf3 {[%clk 0:02:59]}  Bg4 {[%clk 0:02:58]} 3. e4 {[%clk 0:02:58]}  Nf6 {[%clk 0:02:57]} 4. Nc3 {[%clk 0:02:58]}  e6 {[%clk 0:02:58]} 5. Be2 {[%clk 0:02:56]}  c6 {[%clk 0:02:56]} 6. O-O {[%clk 0:02:51]}  d5 {[%clk 0:02:56]} 7. e5 {[%clk 0:02:39]}  Nfd7 {[%clk 0:02:56]} 8. Bf4 {[%clk 0:02:27]}  Be7 {[%clk 0:02:55]} 9. h3 {[%clk 0:02:20]}  Bh5 {[%clk 0:02:56]} 10. Qd2 {[%clk 0:02:18]}  O-O {[%clk 0:02:55]} 11. Nd1 {[%clk 0:02:15]}  c5 {[%clk 0:02:54]} 12. c3 {[%clk 0:02:15]}  Nc6 {[%clk 0:02:54]} 13. Ne3 {[%clk 0:02:16]}  cxd4 {[%clk 0:02:50]} 14. cxd4 {[%clk 0:02:14]}  Qb6 {[%clk 0:02:49]} 15. Rfd1 {[%clk 0:01:53]}  Rfc8 {[%clk 0:02:47]} 16. Rac1 {[%clk 0:01:44]}  Bb4 {[%clk 0:02:25]} 17. Qd3 {[%clk 0:01:40]}  Bf8 {[%clk 0:02:14]} 18. b3 {[%clk 0:01:29]}  Bxf3 {[%clk 0:01:57]} 19. Bxf3 {[%clk 0:01:29]}  Qxd4 {[%clk 0:01:50]} 20. Qxd4 {[%clk 0:01:01]}  Nxd4 {[%clk 0:01:50]} 21. Rxc8 {[%clk 0:00:52]}  Nxf3+ {[%clk 0:01:45]} 22. gxf3 {[%clk 0:00:53]}  Rxc8 {[%clk 0:01:44]} 23. Rd2 {[%clk 0:00:47]}  Bb4 {[%clk 0:01:42]} 24. Re2 {[%clk 0:00:44]}  b5 {[%clk 0:01:40]} 25. Nc2 {[%clk 0:00:43]}  Bc3 {[%clk 0:01:40]} 26. Kf1 {[%clk 0:00:24]}  d4 {[%clk 0:01:38]} 27. Re4 {[%clk 0:00:24]}  d3 {[%clk 0:01:36]} 28. Ne3 {[%clk 0:00:22]}  Nc5 {[%clk 0:01:31]} 0-1


[Site "https://www.chess.com"]

[Event "Titled Tuesday Blitz December 27 Early 2022"]
[White "Bryakin, Mikhail"]
[Black "Barp, Alberto"]
[WhiteFideId "4165314"]
[BlackFideId "872555"]
[WhiteElo "2455"]
[BlackElo "2432"]
[Result "1-0"]
[Round "06"]
[TimeControl "180+2"]
[Date "2022.12.27"]
[WhiteClock "0:00:46"]
[BlackClock "0:01:16"]

1. b3 {[%clk 0:02:55]}  e5 {[%clk 0:02:57]} 2. Bb2 {[%clk 0:02:52]}  Nc6 {[%clk 0:02:58]} 3. e3 {[%clk 0:02:52]}  g6 {[%clk 0:02:57]} 4. c4 {[%clk 0:02:48]}  Bg7 {[%clk 0:02:57]} 5. Nc3 {[%clk 0:02:49]}  Nge7 {[%clk 0:02:57]} 6. d3 {[%clk 0:02:47]}  O-O {[%clk 0:02:58]} 7. a3 {[%clk 0:02:45]}  d5 {[%clk 0:02:57]} 8. cxd5 {[%clk 0:02:45]}  Nxd5 {[%clk 0:02:58]} 9. Nge2 {[%clk 0:02:37]}  Be6 {[%clk 0:02:54]} 10. Nxd5 {[%clk 0:02:30]}  Qxd5 {[%clk 0:02:53]} 11. b4 {[%clk 0:02:30]}  Rad8 {[%clk 0:02:47]} 12. Nc3 {[%clk 0:02:28]}  Qd7 {[%clk 0:02:47]} 13. Be2 {[%clk 0:02:25]}  a5 {[%clk 0:02:40]} 14. b5 {[%clk 0:02:18]}  Ne7 {[%clk 0:02:41]} 15. a4 {[%clk 0:02:19]}  Nd5 {[%clk 0:02:40]} 16. Nxd5 {[%clk 0:02:15]}  Bxd5 {[%clk 0:02:41]} 17. O-O {[%clk 0:02:15]}  c6 {[%clk 0:02:37]} 18. Bc3 {[%clk 0:02:09]}  b6 {[%clk 0:02:21]} 19. d4 {[%clk 0:02:00]}  exd4 {[%clk 0:02:12]} 20. Bxd4 {[%clk 0:02:00]}  Bxd4 {[%clk 0:02:08]} 21. Qxd4 {[%clk 0:02:01]}  c5 {[%clk 0:02:07]} 22. Qf4 {[%clk 0:01:59]}  Qd6 {[%clk 0:02:05]} 23. Qg5 {[%clk 0:01:43]}  Bb3 {[%clk 0:01:52]} 24. Rfc1 {[%clk 0:01:31]}  Qd5 {[%clk 0:01:52]} 25. Qf4 {[%clk 0:01:26]}  Rfe8 {[%clk 0:01:46]} 26. h4 {[%clk 0:01:21]}  Qe5 {[%clk 0:01:45]} 27. Qh6 {[%clk 0:01:16]}  Rd2 {[%clk 0:01:42]} 28. Bf3 {[%clk 0:01:11]}  Qf6 {[%clk 0:01:33]} 29. Re1 {[%clk 0:00:51]}  Bd5 {[%clk 0:01:25]} 30. e4 {[%clk 0:00:47]}  Bxe4 {[%clk 0:01:16]} 31. Qxd2 {[%clk 0:00:46]} 1-0


[Site "https://www.chess.com"]

[Event "Titled Tuesday Blitz December 27 Early 2022"]
[White "Buscar, Michael"]
[Black "Larina, Maria"]
[WhiteFideId "2603616"]
[BlackFideId "24113182"]
[WhiteElo "2041"]
[BlackElo "1948"]
[Result "1-0"]
[Round "06"]
[TimeControl "180+2"]
[Date "2022.12.27"]
[WhiteClock "0:00:27"]
[BlackClock "0:00:02"]

1. Nf3 {[%clk 0:03:00]}  f5 {[%clk 0:02:59]} 2. g3 {[%clk 0:03:00]}  Nf6 {[%clk 0:02:58]} 3. Bg2 {[%clk 0:03:00]}  g6 {[%clk 0:02:57]} 4. d4 {[%clk 0:03:00]}  Bg7 {[%clk 0:02:56]} 5. c4 {[%clk 0:03:00]}  d6 {[%clk 0:02:56]} 6. d5 {[%clk 0:02:59]}  O-O {[%clk 0:02:55]} 7. O-O {[%clk 0:02:59]}  c6 {[%clk 0:02:53]} 8. Nc3 {[%clk 0:02:58]}  e5 {[%clk 0:02:49]} 9. dxe6 {[%clk 0:02:58]}  Bxe6 {[%clk 0:02:50]} 10. Bf4 {[%clk 0:02:56]}  d5 {[%clk 0:02:29]} 11. cxd5 {[%clk 0:02:54]}  Nxd5 {[%clk 0:02:30]} 12. Nxd5 {[%clk 0:02:53]}  Bxd5 {[%clk 0:02:30]} 13. Qc2 {[%clk 0:02:51]}  Na6 {[%clk 0:02:22]} 14. Be5 {[%clk 0:02:43]}  Bxf3 {[%clk 0:02:06]} 15. Bxg7 {[%clk 0:02:42]}  Bxg2 {[%clk 0:02:04]} 16. Bxf8 {[%clk 0:02:22]}  Bxf1 {[%clk 0:02:02]} 17. Bh6 {[%clk 0:02:15]}  Bh3 {[%clk 0:01:55]} 18. Rd1 {[%clk 0:02:11]}  Qe7 {[%clk 0:01:41]} 19. Qc3 {[%clk 0:02:00]}  f4 {[%clk 0:01:30]} 20. Bxf4 {[%clk 0:01:43]}  Rd8 {[%clk 0:01:24]} 21. Qc4+ {[%clk 0:01:36]}  Kg7 {[%clk 0:00:24]} 22. Be5+ {[%clk 0:01:12]}  Qxe5 {[%clk 0:00:20]} 23. Rxd8 {[%clk 0:01:11]}  Nc5 {[%clk 0:00:15]} 24. Qd4 {[%clk 0:00:42]}  Qxd4 {[%clk 0:00:14]} 25. Rxd4 {[%clk 0:00:43]}  Be6 {[%clk 0:00:12]} 26. e4 {[%clk 0:00:41]}  g5 {[%clk 0:00:11]} 27. b4 {[%clk 0:00:37]}  Na4 {[%clk 0:00:09]} 28. f3 {[%clk 0:00:36]}  Nb6 {[%clk 0:00:08]} 29. a3 {[%clk 0:00:34]}  Kf6 {[%clk 0:00:07]} 30. Kf2 {[%clk 0:00:34]}  Ke5 {[%clk 0:00:08]} 31. Rd8 {[%clk 0:00:33]}  h5 {[%clk 0:00:07]} 32. Rb8 {[%clk 0:00:32]}  Nc4 {[%clk 0:00:06]} 33. Rxb7 {[%clk 0:00:31]}  Nxa3 {[%clk 0:00:06]} 34. Rxa7 {[%clk 0:00:31]}  Nb5 {[%clk 0:00:06]} 35. Rh7 {[%clk 0:00:32]}  h4 {[%clk 0:00:05]} 36. gxh4 {[%clk 0:00:31]}  gxh4 {[%clk 0:00:06]} 37. Rxh4 {[%clk 0:00:31]}  Kd4 {[%clk 0:00:06]} 38. Rh6 {[%clk 0:00:29]}  Bd7 {[%clk 0:00:03]} 39. h4 {[%clk 0:00:27]}  Kc3 {[%clk 0:00:03]} 40. h5 {[%clk 0:00:27]}  Kxb4 {[%clk 0:00:03]} 41. Rh7 {[%clk 0:00:27]}  Be6 {[%clk 0:00:03]} 42. h6 {[%clk 0:00:28]}  Kc3 {[%clk 0:00:02]} 43. Re7 {[%clk 0:00:27]}  Bc4 {[%clk 0:00:02]} 44. h7 {[%clk 0:00:27]} 1-0


[Site "https://www.chess.com"]

[Event "Titled Tuesday Blitz December 27 Early 2022"]
[White "Cardoso Cardoso, Jose Gabriel"]
[Black "Svane, Rasmus"]
[WhiteFideId "4430492"]
[BlackFideId "4657101"]
[WhiteElo "2492"]
[BlackElo "2623"]
[Result "1-0"]
[Round "06"]
[TimeControl "180+2"]
[Date "2022.12.27"]
[WhiteClock "0:00:14"]
[BlackClock "0:00:01"]

1. d4 {[%clk 0:03:00]}  Nf6 {[%clk 0:02:59]} 2. Nc3 {[%clk 0:03:00]}  d5 {[%clk 0:02:59]} 3. Bf4 {[%clk 0:03:00]}  c5 {[%clk 0:03:00]} 4. e3 {[%clk 0:03:00]}  cxd4 {[%clk 0:02:58]} 5. exd4 {[%clk 0:03:01]}  a6 {[%clk 0:02:58]} 6. Nf3 {[%clk 0:03:01]}  Nc6 {[%clk 0:02:59]} 7. Ne5 {[%clk 0:03:01]}  Bd7 {[%clk 0:02:59]} 8. Nxd7 {[%clk 0:02:58]}  Qxd7 {[%clk 0:02:58]} 9. Ne2 {[%clk 0:02:56]}  e6 {[%clk 0:02:53]} 10. c3 {[%clk 0:02:56]}  Bd6 {[%clk 0:02:53]} 11. Bg3 {[%clk 0:02:37]}  O-O {[%clk 0:02:51]} 12. Nf4 {[%clk 0:02:36]}  Qc7 {[%clk 0:02:36]} 13. Nh5 {[%clk 0:02:29]}  Ne4 {[%clk 0:02:28]} 14. Bd3 {[%clk 0:02:29]}  f5 {[%clk 0:02:19]} 15. Bxd6 {[%clk 0:02:24]}  Qxd6 {[%clk 0:02:20]} 16. f3 {[%clk 0:02:22]}  Nf6 {[%clk 0:01:46]} 17. Nxf6+ {[%clk 0:02:20]}  Rxf6 {[%clk 0:01:47]} 18. Qe2 {[%clk 0:02:19]}  e5 {[%clk 0:01:42]} 19. dxe5 {[%clk 0:02:18]}  Nxe5 {[%clk 0:01:43]} 20. O-O-O {[%clk 0:02:13]}  Rc8 {[%clk 0:01:18]} 21. Rhe1 {[%clk 0:02:10]}  Nc6 {[%clk 0:00:58]} 22. Kb1 {[%clk 0:02:07]}  h6 {[%clk 0:00:56]} 23. Bc4 {[%clk 0:01:58]}  Qxh2 {[%clk 0:00:55]} 24. Bxd5+ {[%clk 0:01:57]}  Kh7 {[%clk 0:00:56]} 25. Be6 {[%clk 0:01:45]}  Rcf8 {[%clk 0:00:51]} 26. Rd7 {[%clk 0:01:41]}  Qf4 {[%clk 0:00:39]} 27. Bd5 {[%clk 0:01:36]}  b5 {[%clk 0:00:36]} 28. a3 {[%clk 0:01:23]}  Na5 {[%clk 0:00:36]} 29. Qe7 {[%clk 0:01:20]}  Qg3 {[%clk 0:00:36]} 30. Re6 {[%clk 0:01:04]}  Qg6 {[%clk 0:00:28]} 31. Qxf8 {[%clk 0:00:42]}  Rxf8 {[%clk 0:00:23]} 32. Rxg6 {[%clk 0:00:42]}  Kxg6 {[%clk 0:00:24]} 33. Rd6+ {[%clk 0:00:43]}  Rf6 {[%clk 0:00:23]} 34. Rxf6+ {[%clk 0:00:40]}  Kxf6 {[%clk 0:00:24]} 35. b4 {[%clk 0:00:41]}  Nc4 {[%clk 0:00:25]} 36. Bxc4 {[%clk 0:00:41]}  bxc4 {[%clk 0:00:26]} 37. a4 {[%clk 0:00:42]}  Ke5 {[%clk 0:00:22]} 38. Kc2 {[%clk 0:00:42]}  g5 {[%clk 0:00:18]} 39. g3 {[%clk 0:00:34]}  h5 {[%clk 0:00:17]} 40. Kd2 {[%clk 0:00:35]}  Kd5 {[%clk 0:00:04]} 41. Ke3 {[%clk 0:00:32]}  a5 {[%clk 0:00:04]} 42. b5 {[%clk 0:00:22]}  Kd6 {[%clk 0:00:04]} 43. Kf2 {[%clk 0:00:19]}  Kd5 {[%clk 0:00:04]} 44. Kg2 {[%clk 0:00:19]}  g4 {[%clk 0:00:01]} 45. Kf2 {[%clk 0:00:14]}  Ke5 {[%clk 0:00:01]} 46. Ke3 {[%clk 0:00:14]}  Kd5 {[%clk 0:00:01]} 47. fxg4 {[%clk 0:00:14]} 1-0


[Site "https://www.chess.com"]

[Event "Titled Tuesday Blitz December 27 Early 2022"]
[White "Chigaev, Maksim"]
[Black "Moskvin, Anatoly"]
[WhiteFideId "4108116"]
[BlackFideId "24199990"]
[WhiteElo "2628"]
[BlackElo "2189"]
[Result "1-0"]
[Round "06"]
[TimeControl "180+2"]
[Date "2022.12.27"]
[WhiteClock "0:01:38"]
[BlackClock "0:00:01"]

1. e4 {[%clk 0:03:00]}  e5 {[%clk 0:03:00]} 2. Nf3 {[%clk 0:03:00]}  Nc6 {[%clk 0:03:00]} 3. Bc4 {[%clk 0:03:01]}  Nf6 {[%clk 0:02:59]} 4. d3 {[%clk 0:03:01]}  Bc5 {[%clk 0:02:59]} 5. Bg5 {[%clk 0:03:02]}  h6 {[%clk 0:02:59]} 6. Bh4 {[%clk 0:03:00]}  g5 {[%clk 0:02:57]} 7. Bg3 {[%clk 0:03:00]}  d6 {[%clk 0:02:56]} 8. c3 {[%clk 0:03:01]}  Bb6 {[%clk 0:02:56]} 9. Nbd2 {[%clk 0:02:59]}  Be6 {[%clk 0:02:40]} 10. h3 {[%clk 0:02:55]}  Qd7 {[%clk 0:02:34]} 11. a4 {[%clk 0:02:54]}  a6 {[%clk 0:02:29]} 12. b4 {[%clk 0:02:55]}  Ne7 {[%clk 0:02:12]} 13. a5 {[%clk 0:02:50]}  Ba7 {[%clk 0:02:12]} 14. O-O {[%clk 0:02:36]}  Ng6 {[%clk 0:02:12]} 15. Re1 {[%clk 0:02:32]}  g4 {[%clk 0:01:56]} 16. hxg4 {[%clk 0:02:28]}  Bxc4 {[%clk 0:01:49]} 17. Nxc4 {[%clk 0:02:27]}  Qxg4 {[%clk 0:01:50]} 18. d4 {[%clk 0:02:24]}  Nxe4 {[%clk 0:01:25]} 19. Nfxe5 {[%clk 0:02:13]}  Qxd1 {[%clk 0:01:05]} 20. Raxd1 {[%clk 0:02:14]}  dxe5 {[%clk 0:00:51]} 21. Rxe4 {[%clk 0:02:13]}  O-O-O {[%clk 0:00:27]} 22. Nxe5 {[%clk 0:02:12]}  Rhe8 {[%clk 0:00:27]} 23. Rde1 {[%clk 0:02:11]}  f5 {[%clk 0:00:26]} 24. R4e2 {[%clk 0:02:09]}  Nxe5 {[%clk 0:00:03]} 25. Rxe5 {[%clk 0:02:10]}  Rf8 {[%clk 0:00:04]} 26. Bf4 {[%clk 0:02:08]}  Rd7 {[%clk 0:00:04]} 27. Re8+ {[%clk 0:02:06]}  Rxe8 {[%clk 0:00:04]} 28. Rxe8+ {[%clk 0:02:07]}  Rd8 {[%clk 0:00:05]} 29. Rxd8+ {[%clk 0:02:04]}  Kxd8 {[%clk 0:00:06]} 30. Bxh6 {[%clk 0:02:04]}  Kd7 {[%clk 0:00:06]} 31. Kf1 {[%clk 0:02:05]}  Ke6 {[%clk 0:00:07]} 32. Ke2 {[%clk 0:02:06]}  Kd5 {[%clk 0:00:07]} 33. Kd3 {[%clk 0:02:06]}  c6 {[%clk 0:00:07]} 34. Bf4 {[%clk 0:02:03]}  b6 {[%clk 0:00:07]} 35. Bc7 {[%clk 0:01:45]}  b5 {[%clk 0:00:07]} 36. f3 {[%clk 0:01:44]}  Ke6 {[%clk 0:00:07]} 37. g4 {[%clk 0:01:42]}  Kf6 {[%clk 0:00:08]} 38. Ke3 {[%clk 0:01:39]}  fxg4 {[%clk 0:00:08]} 39. fxg4 {[%clk 0:01:39]}  Kg5 {[%clk 0:00:09]} 40. Kf3 {[%clk 0:01:40]}  Kg6 {[%clk 0:00:07]} 41. Kf4 {[%clk 0:01:38]}  Kf6 {[%clk 0:00:08]} 42. g5+ {[%clk 0:01:37]}  Kg6 {[%clk 0:00:08]} 43. Kg4 {[%clk 0:01:38]}  Kg7 {[%clk 0:00:03]} 44. Kf5 {[%clk 0:01:38]}  Kf7 {[%clk 0:00:04]} 45. g6+ {[%clk 0:01:38]}  Kg7 {[%clk 0:00:05]} 46. Be5+ {[%clk 0:01:38]}  Kg8 {[%clk 0:00:04]} 47. Ke6 {[%clk 0:01:38]}  c5 {[%clk 0:00:05]} 48. dxc5 {[%clk 0:01:38]}  Kf8 {[%clk 0:00:01]} 49. c6 {[%clk 0:01:38]}  Bb8 {[%clk 0:00:02]} 50. Bxb8 {[%clk 0:01:38]}  Kg7 {[%clk 0:00:01]} 1-0


[Site "https://www.chess.com"]

[Event "Titled Tuesday Blitz December 27 Early 2022"]
[White "Ciuffoletti, Paolo"]
[Black "Tharushi, T H D Niklesha"]
[WhiteFideId "807630"]
[BlackFideId "9918264"]
[WhiteElo "2106"]
[BlackElo "1570"]
[Result "1-0"]
[Round "06"]
[TimeControl "180+2"]
[Date "2022.12.27"]
[WhiteClock "0:00:45"]
[BlackClock "0:02:14"]

1. e4 {[%clk 0:03:00]}  c6 {[%clk 0:02:59]} 2. d4 {[%clk 0:03:00]}  d5 {[%clk 0:03:00]} 3. exd5 {[%clk 0:03:00]}  cxd5 {[%clk 0:03:01]} 4. c4 {[%clk 0:03:01]}  Nf6 {[%clk 0:02:59]} 5. Nc3 {[%clk 0:03:01]}  Nc6 {[%clk 0:02:59]} 6. Nf3 {[%clk 0:03:01]}  Bg4 {[%clk 0:02:58]} 7. cxd5 {[%clk 0:03:00]}  Nxd5 {[%clk 0:02:58]} 8. Qb3 {[%clk 0:03:00]}  Bxf3 {[%clk 0:02:56]} 9. gxf3 {[%clk 0:03:01]}  Nxd4 {[%clk 0:02:55]} 10. Bb5+ {[%clk 0:02:55]}  Nc6 {[%clk 0:02:29]} 11. Qxd5 {[%clk 0:02:44]}  Qxd5 {[%clk 0:02:30]} 12. Nxd5 {[%clk 0:02:44]}  O-O-O {[%clk 0:02:31]} 13. Bxc6 {[%clk 0:02:34]}  bxc6 {[%clk 0:02:30]} 14. Nc3 {[%clk 0:02:33]}  e5 {[%clk 0:02:30]} 15. Be3 {[%clk 0:02:29]}  Kb7 {[%clk 0:02:28]} 16. Ke2 {[%clk 0:02:26]}  Bb4 {[%clk 0:02:26]} 17. Rhd1 {[%clk 0:02:23]}  f5 {[%clk 0:02:25]} 18. Rxd8 {[%clk 0:02:16]}  Rxd8 {[%clk 0:02:26]} 19. Rd1 {[%clk 0:02:15]}  Rxd1 {[%clk 0:02:26]} 20. Nxd1 {[%clk 0:02:00]}  f4 {[%clk 0:02:24]} 21. Bd2 {[%clk 0:01:59]}  Bc5 {[%clk 0:02:24]} 22. Bc3 {[%clk 0:01:57]}  Bd6 {[%clk 0:02:24]} 23. Kd3 {[%clk 0:01:52]}  Kb6 {[%clk 0:02:24]} 24. Ke4 {[%clk 0:01:52]}  Kc5 {[%clk 0:02:24]} 25. Bxe5 {[%clk 0:01:48]}  Be7 {[%clk 0:02:25]} 26. Bxg7 {[%clk 0:01:43]}  Kc4 {[%clk 0:02:24]} 27. Be5 {[%clk 0:01:39]}  c5 {[%clk 0:02:23]} 28. Bxf4 {[%clk 0:01:37]}  a5 {[%clk 0:02:24]} 29. Be5 {[%clk 0:01:35]}  h5 {[%clk 0:02:22]} 30. f4 {[%clk 0:01:30]}  Kb5 {[%clk 0:02:22]} 31. f5 {[%clk 0:01:29]}  Kc6 {[%clk 0:02:22]} 32. f6 {[%clk 0:01:29]}  Bf8 {[%clk 0:02:22]} 33. Ne3 {[%clk 0:01:27]}  Kd7 {[%clk 0:02:22]} 34. Kf5 {[%clk 0:01:25]}  Ke8 {[%clk 0:02:21]} 35. Ke6 {[%clk 0:01:24]}  h4 {[%clk 0:02:21]} 36. Bd6 {[%clk 0:01:08]}  Bxd6 {[%clk 0:02:19]} 37. Kxd6 {[%clk 0:01:07]}  Kf7 {[%clk 0:02:20]} 38. Ke5 {[%clk 0:01:07]}  h3 {[%clk 0:02:21]} 39. Nd5 {[%clk 0:01:03]}  c4 {[%clk 0:02:20]} 40. Nf4 {[%clk 0:01:02]}  a4 {[%clk 0:02:20]} 41. a3 {[%clk 0:01:01]}  Kf8 {[%clk 0:02:18]} 42. Nxh3 {[%clk 0:01:00]}  Kf7 {[%clk 0:02:18]} 43. Ng5+ {[%clk 0:01:00]}  Kf8 {[%clk 0:02:19]} 44. Ke6 {[%clk 0:00:56]}  c3 {[%clk 0:02:18]} 45. bxc3 {[%clk 0:00:53]}  Kg8 {[%clk 0:02:17]} 46. f7+ {[%clk 0:00:53]}  Kf8 {[%clk 0:02:15]} 47. Nh7+ {[%clk 0:00:52]}  Kg7 {[%clk 0:02:16]} 48. f8=Q+ {[%clk 0:00:51]}  Kxh7 {[%clk 0:02:16]} 49. Qf7+ {[%clk 0:00:46]}  Kh6 {[%clk 0:02:16]} 50. Qg8 {[%clk 0:00:46]}  Kh5 {[%clk 0:02:15]} 51. Kf5 {[%clk 0:00:46]}  Kh6 {[%clk 0:02:14]} 52. Qg6# {[%clk 0:00:45]} 1-0


[Site "https://www.chess.com"]

[Event "Titled Tuesday Blitz December 27 Early 2022"]
[White "Cruz, William Ferreira Da"]
[Black "Marin Ramirez, Gerardo"]
[WhiteFideId "2118050"]
[BlackFideId "3901068"]
[WhiteElo "2216"]
[BlackElo "2127"]
[Result "1-0"]
[Round "06"]
[TimeControl "180+2"]
[Date "2022.12.27"]
[WhiteClock "0:00:07"]
[BlackClock "0:00:02"]

1. d4 {[%clk 0:02:28]}  d5 {[%clk 0:02:57]} 2. c4 {[%clk 0:02:28]}  c6 {[%clk 0:02:58]} 3. Nc3 {[%clk 0:02:28]}  Nf6 {[%clk 0:02:58]} 4. Nf3 {[%clk 0:02:24]}  e6 {[%clk 0:02:55]} 5. Bg5 {[%clk 0:02:23]}  h6 {[%clk 0:02:51]} 6. Bh4 {[%clk 0:02:18]}  Be7 {[%clk 0:02:50]} 7. e3 {[%clk 0:02:18]}  Nbd7 {[%clk 0:02:50]} 8. Qc2 {[%clk 0:02:18]}  b6 {[%clk 0:02:49]} 9. Rd1 {[%clk 0:02:17]}  Bb7 {[%clk 0:02:50]} 10. Bd3 {[%clk 0:02:15]}  Rc8 {[%clk 0:02:49]} 11. O-O {[%clk 0:02:15]}  O-O {[%clk 0:02:47]} 12. cxd5 {[%clk 0:01:46]}  cxd5 {[%clk 0:02:41]} 13. Qe2 {[%clk 0:01:45]}  Ne4 {[%clk 0:02:33]} 14. Bxe7 {[%clk 0:01:39]}  Qxe7 {[%clk 0:02:34]} 15. Nb5 {[%clk 0:01:10]}  a6 {[%clk 0:02:16]} 16. Na3 {[%clk 0:01:08]}  b5 {[%clk 0:02:07]} 17. Nd2 {[%clk 0:01:08]}  f5 {[%clk 0:01:41]} 18. f3 {[%clk 0:01:07]}  Nxd2 {[%clk 0:01:29]} 19. Qxd2 {[%clk 0:01:06]}  Nb6 {[%clk 0:01:20]} 20. Nb1 {[%clk 0:00:49]}  Nc4 {[%clk 0:01:18]} 21. Qe2 {[%clk 0:00:49]}  Qb4 {[%clk 0:01:14]} 22. b3 {[%clk 0:00:47]}  Na3 {[%clk 0:01:06]} 23. Rc1 {[%clk 0:00:41]}  Nxb1 {[%clk 0:01:04]} 24. Bxb1 {[%clk 0:00:41]}  Rc3 {[%clk 0:00:57]} 25. Rxc3 {[%clk 0:00:31]}  Qxc3 {[%clk 0:00:56]} 26. Qd3 {[%clk 0:00:32]}  Rc8 {[%clk 0:00:55]} 27. Rd1 {[%clk 0:00:29]}  Qxd3 {[%clk 0:00:47]} 28. Bxd3 {[%clk 0:00:29]}  Rc3 {[%clk 0:00:47]} 29. Kf2 {[%clk 0:00:28]}  Kf7 {[%clk 0:00:47]} 30. Ke2 {[%clk 0:00:28]}  Ke7 {[%clk 0:00:44]} 31. Kd2 {[%clk 0:00:25]}  b4 {[%clk 0:00:44]} 32. h4 {[%clk 0:00:18]}  Kd6 {[%clk 0:00:40]} 33. Rg1 {[%clk 0:00:17]}  Ke7 {[%clk 0:00:29]} 34. g4 {[%clk 0:00:17]}  fxg4 {[%clk 0:00:29]} 35. fxg4 {[%clk 0:00:17]}  a5 {[%clk 0:00:25]} 36. g5 {[%clk 0:00:16]}  hxg5 {[%clk 0:00:22]} 37. hxg5 {[%clk 0:00:15]}  Bc6 {[%clk 0:00:21]} 38. g6 {[%clk 0:00:14]}  Be8 {[%clk 0:00:19]} 39. Rf1 {[%clk 0:00:13]}  a4 {[%clk 0:00:17]} 40. Bc2 {[%clk 0:00:12]}  axb3 {[%clk 0:00:16]} 41. axb3 {[%clk 0:00:12]}  Rc7 {[%clk 0:00:15]} 42. Ra1 {[%clk 0:00:11]}  Rb7 {[%clk 0:00:14]} 43. Rh1 {[%clk 0:00:09]}  Kf6 {[%clk 0:00:13]} 44. Rf1+ {[%clk 0:00:08]}  Ke7 {[%clk 0:00:13]} 45. Rf4 {[%clk 0:00:09]}  Rc7 {[%clk 0:00:12]} 46. Rh4 {[%clk 0:00:07]}  Kf6 {[%clk 0:00:07]} 47. Rh8 {[%clk 0:00:07]}  Bxg6 {[%clk 0:00:07]} 48. Rb8 {[%clk 0:00:06]}  Rxc2+ {[%clk 0:00:04]} 49. Kd1 {[%clk 0:00:06]}  Rc3 {[%clk 0:00:04]} 50. Rxb4 {[%clk 0:00:06]}  Rxe3 {[%clk 0:00:04]} 51. Rb8 {[%clk 0:00:06]}  Rd3+ {[%clk 0:00:03]} 52. Ke2 {[%clk 0:00:06]}  Rxd4 {[%clk 0:00:04]} 53. b4 {[%clk 0:00:07]}  Rc4 {[%clk 0:00:04]} 54. b5 {[%clk 0:00:08]}  Rb4 {[%clk 0:00:03]} 55. b6 {[%clk 0:00:09]}  Kf7 {[%clk 0:00:02]} 56. b7 {[%clk 0:00:08]}  Ke7 {[%clk 0:00:02]} 57. Rg8 {[%clk 0:00:07]} 1-0


[Site "https://www.chess.com"]